Cogmind - Beta 16 @@@ ROGUE MODE // 2025.12.01 @ 00:29:30 Player: shapeshifter Result: Destroyed by Autobeam Turret with Autobeam Performance ------------- Evolutions (0) 0 Regions Visited (3) 600 Robots Destroyed (31) 155 Value Destroyed (627) 627 Prototype IDs (0) 0 Alien Tech Used (0) 0 Bonus (0) 0 TOTAL SCORE: 1382 Bonus ------- None Cogmind --------- Core Integrity 0/250 Matter 286/300 Energy 160/160 System Corruption 0% Temperature Cool (24) Movement Rolling (110) Ox2 Location -10/Subcaves Parts ------- > --- POWER (1) -------- Light Nuclear Core > --- PROPULSION (2) --- Wheel Wheel > --- UTILITY (2) ------ Large Storage Unit Medium Armor Plating > --- WEAPON (2) ------- Light EM Pulse Cannon Bore Cannon > --- INVENTORY (15) --- Fission Core Flexi-carbon Leg Cargo Storage Unit Armor Integrity Analyzer Light Armor Plating Light Armor Plating Medium Armor Plating Authchip [R/Combat] Light EM Pulse Cannon Autogun Grenade Launcher Datajack Peak State ------------ > --- POWER ------------ Light Nuclear Core > --- PROPULSION ------- Wheel Wheel > --- UTILITY ---------- Large Storage Unit Medium Armor Plating > --- WEAPON ----------- Light EM Pulse Cannon Bore Cannon > --- INVENTORY -------- Fission Core Flexi-carbon Leg Cargo Storage Unit Armor Integrity Analyzer Light Armor Plating Light Armor Plating Medium Armor Plating Authchip [R/Combat] Light EM Pulse Cannon Autogun Grenade Launcher Datajack [Rating: 18] Favorites ----------- Power Ion Engine Engine Ion Engine Power Core Light Nuclear Core Propulsion Light Treads Treads Light Treads Wheel Wheel Utility Large Storage Unit Device Seismic Detector Storage Large Storage Unit Protection Medium Armor Plating Weapon Autogun Energy Cannon Light EM Pulse Cannon Ballistic Gun Autogun Ballistic Cannon Bore Cannon Build | -11 -10 -10 -10 ------- Run | Yrd Mat Min Sub Slots Evolved . | . . . . Power . | . . . . Propulsion . | . . . . Utility . | . . . . Weapon . | . . . . Parts Attached 23 | 8 5 10 . Power 2 | 1 . 1 . Engine 1 | 1 . . . Core 1 | . . 1 . Reactor . | . . . . Propulsion 4 | 2 . 2 . Treads 2 | 2 . . . Leg . | . . . . Wheel 2 | . . 2 . Hover . | . . . . Flight . | . . . . Utility 7 | 2 3 2 . Device 2 | 1 1 . . Storage 2 | 1 1 . . Processor . | . . . . Hackware . | . . . . Protection 3 | . 1 2 . Artifact . | . . . . Weapon 10 | 3 2 5 . Energy Gun . | . . . . Energy Cannon 2 | . . 2 . Ballistic Gun 7 | 3 2 2 . Ballistic Cannon 1 | . . 1 . Launcher . | . . . . Special Weapon . | . . . . Impact Weapon . | . . . . Slashing Weapon . | . . . . Piercing Weapon . | . . . . Special Melee Weapon . | . . . . Unidentified Prototypes . | . . . . Parts Lost 7 | . . 7 . Power 1 | . . 1 . Propulsion 2 | . . 2 . Utility 2 | . . 2 . Weapon 2 | . . 2 . Highest Loss Streak 7 | . . 7 . To Critical Strikes . | . . . . Average Backups 10 | 4 10 11 12 Power . | . 1 . 1 Propulsion . | 1 . . 1 Utility 4 | . 3 6 6 Weapon 3 | . 4 3 3 Tool/Special . | . . . . Unused Backups 17 | . 6 1 10 Power 2 | . 1 . 1 Propulsion 3 | . 2 . 1 Utility 8 | . 1 1 6 Weapon 3 | . 2 . 1 Tool/Special 1 | . . . 1 Average Slot Usage (%) 94 | . 100 86 100 Engine 9 | . 14 4 . Core 3 | . . 6 14 Treads 19 | . 28 8 . Wheel 6 | . . 13 28 Device 2 | . 4 . . Storage 14 | . 14 14 14 Protection 10 | . 9 10 14 Energy Cannon 5 | . . 12 14 Ballistic Gun 21 | . 28 13 . Ballistic Cannon 1 | . . 2 14 Peak Build Rating 18 | 8 12 18 18 Average Rating 11 | 5 10 12 18 On Entrance 9 | . 8 12 18 Avg Prop Armor Cover (%) . | . . . . Naked Turns . | . . . . Heaviest Build 45 | 15 38 45 45 Greatest Support 40 | 40 40 40 20 Greatest Overweight (x) 8 | . . 8 2 Average Overweight (x) . | . . 1 2 Largest Inventory Capacity 15 | 8 15 15 15 Average Capacity 12 | 7 11 15 15 Most Carried 15 | 7 15 15 13 Average Carried 10 | 4 10 12 13 Final Capacity 15 | 8 15 15 15 Final Carried 15 | 6 15 13 13 Class Distribution -------------------- 89% | Mutant 10% | Scavenger-Mutant Dominant Class ---------------- Mutant | -10/Materials Mutant | -10/Mines Scavenger-Mutant | -10/Subcaves Resources | -11 -10 -10 -10 ----------- Run | Yrd Mat Min Sub Matter Collected 1032 | 268 377 348 39 Remotely . | . . . . Salvage Created 993 | 46 621 248 78 Parts 71 | 9 48 9 5 Haulers Intercepted 1 | . 1 . . Recyclers Shooed . | . . . . Parts Field Recycled . | . . . . Retrieved Matter . | . . . . Parts Self-Destructed . | . . . . Prevented . | . . . . Parts Restored . | . . . . Kills | -11 -10 -10 -10 ------- Run | Yrd Mat Min Sub Combat Hostiles Destroyed 28 | . 15 11 2 Guns 20 | . 15 5 . Cannons 8 | . . 6 2 Classes Destroyed 10 | 1 5 3 1 Worker 4 | . 3 1 . Builder 1 | . . 1 . Tunneler 5 | 3 . 2 . Hauler 1 | . 1 . . Watcher 2 | . 2 . . Swarmer 5 | . 5 . . Grunt 10 | . 10 . . Demolisher 1 | . . 1 . Subdweller 2 | . . . 2 Assembled 10 | . . 10 . Best Kill Streak 6 | 2 4 6 1 Combat Bots Only 4 | . 3 4 1 Max Kills in Single Turn 2 | 1 2 2 1 Gunslinging 1 | . 1 . . Exploded . | . . . . Melee . | . . . . Uniques/NPCs Destroyed . | . . . . Combat | -11 -10 -10 -10 -------- Run | Yrd Mat Min Sub Hostile Shots Fired 114 | . 43 57 14 Missed 35 | . 13 16 6 Hits 79 | . 30 41 8 Melee 7 | . . 7 . Projectile 72 | . 30 34 8 AOE 19 | . . 19 . Part Disruptions 2 | . . 2 . Damage Taken 1501 | . 325 1104 72 Core 250 | . 46 195 9 Absorbed by Shields . | . . . . Core Remaining (%) 100 | 100 . . . Volleys Fired 99 | 7 39 49 4 Largest 2 | 2 2 2 2 Hottest 112 | 40 46 112 104 Shots Fired 185 | 14 78 85 8 Gun 139 | 14 78 47 . Cannon 46 | . . 38 8 Launcher . | . . . . Special . | . . . . Kinetic 154 | 14 78 58 4 Thermal . | . . . . Explosive . | . . . . Electromagnetic 31 | . . 27 4 Robot Hit Streak 12 | 3 12 6 6 Robot Miss Streak 7 | 2 5 7 2 Penetration Max 1 | . . 1 . Secondary Targets 5 | . 4 1 . Max Gunslinging Chain 1 | . 1 1 . Shots Hit Robots 93 | 7 42 39 5 Core Hits 52 | 4 24 21 3 Critical Kills 2 | . . 2 . Critical Parts Destroyed 2 | . . 1 1 Critical Strikes 4 | . . 3 1 Destroy 4 | . . 3 1 Melee Attacks . | . . . . Impact . | . . . . Slashing . | . . . . Piercing . | . . . . Sneak Attacks . | . . . . Combat Hostiles . | . . . . Follow-up Attacks . | . . . . Damage Inflicted 1674 | 94 715 748 117 Guns 1141 | 94 715 332 . Cannons 524 | . . 407 117 Explosions . | . . . . Melee . | . . . . Ramming 9 | . . 9 . Kinetic 1305 | 94 715 417 79 Thermal . | . . . . Explosive . | . . . . Electromagnetic 360 | . . 322 38 Impact . | . . . . Slashing . | . . . . Piercing . | . . . . Highest Corruption . | . . . . Average Corruption . | . . . . Corruption Purged . | . . . . Corruption Blocked . | . . . . Overload Shots . | . . . . Overflow Damage 26 | . . 26 . Projectiles 26 | . . 26 . Explosions . | . . . . Melee . | . . . . Knockbacks 1 | . . . 1 Impact . | . . . . Kinetic 1 | . . . 1 Secondary . | . . . . Self-Inflicted Damage . | . . . . Shots . | . . . . Rammed 1 | . . 1 . Targets Rammed 1 | . . 1 . Kicked . | . . . . Crushed . | . . . . Highest Temperature 271 | . 67 271 5 Average Temperature 55 | . 14 83 3 Received Heat Transfer 252 | . 102 120 30 Effects 2 | . . 2 . Interference 2 | . . 2 . Siege Activations . | . . . . Martial Activations . | . . . . Shielding Activations . | . . . . Robots Disrupted . | . . . . Combat Hostiles . | . . . . Robots Corrupted . | . . . . Combat Hostiles . | . . . . Parts Fried 2 | . . 2 . Impact Corruptions . | . . . . Robots Melted . | . . . . Combat Hostiles . | . . . . Parts Melted . | . . . . Heat Transferred . | . . . . Parts Sabotaged . | . . . . Parts Stolen . | . . . . Parts Stripped . | . . . . Power Chain Reactions . | . . . . Alert | -11 -10 -10 -10 ------- Run | Yrd Mat Min Sub Maximum Alert Level . | . . . . Low Security (%) 100 | 100 100 100 . Level 1 . | . . . . Level 2 . | . . . . Level 3 . | . . . . Level 4 . | . . . . Level 5 . | . . . . High Security . | . . . . Max Security . | . . . . Peak Influence 153 | 5 153 35 . Initial 22 | . . 22 . Average 50 | 1 89 2 . Influence Increases 510 | 15 439 56 . Destroy 0b10 Robot/C 320 | . 300 20 . Destroy 0b10 Robot/NC 65 | 15 30 20 . Destroy Leader 76 | . 66 10 . Successful Hack 13 | . 13 . . Select Force Hacks 30 | . 30 . . Destroy Structure 6 | . . 6 . Influence Decreases 510 | 15 382 113 . Entered New Map 35 | . . 35 . Time Decay 475 | 15 382 78 . Squads Dispatched 3 | . 3 . . Investigation 2 | . 2 . . Extermination . | . . . . Reinforcement 1 | . 1 . . Assault . | . . . . Garrison . | . . . . Intercept . | . . . . Searches Triggered . | . . . . Construction Impeded . | . . . . Haulers Reinforced . | . . . . Active Scanning Responses . | . . . . Cargo Convoy Interrupts . | . . . . Stealth | -11 -10 -10 -10 --------- Run | Yrd Mat Min Sub Distress Signals 2 | . 1 1 . Communications Jammed . | . . . . Distress Signals . | . . . . Times Spotted 44 | . 22 16 6 Peak Tracking Total 6 | . 3 4 6 Tactical Retreats 3 | . . 3 . Traps | -11 -10 -10 -10 ------- Run | Yrd Mat Min Sub Traps Triggered 1 | . 1 . . Indirectly . | . . . . Trap Hack Attempts . | . . . . Triggered . | . . . . Disarmed . | . . . . Reprogrammed . | . . . . Reused . | . . . . Traps Extracted . | . . . . Installed . | . . . . Triggered . | . . . . Machines | -11 -10 -10 -10 ---------- Run | Yrd Mat Min Sub Machines Disabled . | . . . . Max in Single Turn . | . . . . Machines Repaired . | . . . . Machines Dismantled . | . . . . Machines Sabotaged . | . . . . Overloaded Fab Kills . | . . . . Hacking | -11 -10 -10 -10 --------- Run | Yrd Mat Min Sub Machines Accessed 6 | . 6 . . Terminals 5 | . 5 . . Fabricators . | . . . . Repair Stations . | . . . . Recycling Units 1 | . 1 . . Scanalyzers . | . . . . Garrison Access . | . . . . Total Hacks 15 | . 15 . . Successful 10 | . 10 . . Failed 5 | . 5 . . Catastrophic . | . . . . Database Lockouts . | . . . . Manual 12 | . 12 . . Terminals 12 | . 12 . . Fabricators . | . . . . Repair Stations . | . . . . Recycling Units 3 | . 3 . . Scanalyzers . | . . . . Garrison Access . | . . . . Terminal Hacks 2 | . 2 . . Branch Access Points 1 | . 1 . . Terminal Index 1 | . 1 . . Fabricator Hacks . | . . . . Repair Station Hacks . | . . . . Recycling Unit Hacks 1 | . 1 . . Retrieve Components 1 | . 1 . . Scanalyzer . | . . . . Garrison Access Hacks . | . . . . Unauthorized Hacks 7 | . 7 . . Terminals 6 | . 6 . . Botnet 1 | . 1 . . Skim 5 | . 5 . . Fabricators . | . . . . Repair Stations . | . . . . Recycling Units 1 | . 1 . . Tunnel 1 | . 1 . . Scanalyzers . | . . . . Garrison Access . | . . . . Data Cores Recovered . | . . . . Used . | . . . . Hacking Detections 4 | . 4 . . Full Trace Events . | . . . . Feedback Events . | . . . . Feedback Blocked . | . . . . Robot Schematics Acquired . | . . . . Robots Built . | . . . . Authchips . | . . . . Time . | . . . . Total Robot Build Rating . | . . . . Part Schematics Acquired . | . . . . Parts Built . | . . . . Authchips . | . . . . Time . | . . . . Total Part Build Rating . | . . . . Part Studies Acquired . | . . . . Parts Repaired . | . . . . Time . | . . . . Parts Recycled . | . . . . Recycled Matter . | . . . . Retrieved Matter . | . . . . Retrieved Components 2 | . 2 . . Parts Scanalyzed . | . . . . Part Schematics Acquired . | . . . . Parts Damaged . | . . . . Bothacking | -11 -10 -10 -10 ------------ Run | Yrd Mat Min Sub Used RIF Installer . | . . . . Robots Hacked . | . . . . Non-combat . | . . . . Combat . | . . . . Robot Hacks Applied . | . . . . Relay Couplers Released . | . . . . Fabnet Peak Effective % . | . . . . Robots Rewired . | . . . . Allies Hacked . | . . . . Hacks Repelled . | . . . . Allies | -11 -10 -10 -10 -------- Run | Yrd Mat Min Sub Total Allies . | . . . . Largest Group . | . . . . Highest-Rated Group . | . . . . Highest-Rated Ally . | . . . . Total Orders . | . . . . Ally Attacks . | . . . . Total Damage . | . . . . Kills . | . . . . Allies Corrupted . | . . . . Allies Melted . | . . . . Intel | -11 -10 -10 -10 ------- Run | Yrd Mat Min Sub Active Infowar (turns) 388 | 16 372 . . Terrain 2 | . 2 . . Seismic 386 | 16 370 . . Robot Analysis Total . | . . . . Derelict Logs Recovered 1 | . . 1 . Drone Launches . | . . . . Drone Recoveries . | . . . . Exploration | -11 -10 -10 -10 ------------- Run | Yrd Mat Min Sub Turns Passed 2133 | 150 1134 775 74 Spaces Moved 974 | 82 515 336 41 Core 30 | 20 . 10 . Treads 699 | 62 515 122 . Legs . | . . . . Wheels 245 | . . 204 41 Hover . | . . . . Flight . | . . . . Fastest Speed 50 | 50 160 95 110 Average Speed 146 | 133 160 134 110 Slowest Speed 450 | 160 160 450 110 Overloaded Moves . | . . . . Propulsion Burnouts . | . . . . Robots Hopped . | . . . . Potential Cave-ins . | . . . . Cave-ins Triggered . | . . . . Exploration Rate (%) 42 | 6 83 78 4 Regions Visited 3 Branch Regions 2 Pre-discovered Areas 1 | . 1 . . Known Exits Taken 1 | . 1 . . Unknown Exits Taken 2 | 1 . 1 . Scrap Searched 1 | . . 1 . Spaces Dug . | . . . . Terrain Destroyed 6 | . . 6 . Melee . | . . . . Projectile 6 | . . 6 . AOE . | . . . . Terrain Rammed . | . . . . Walls Destroyed . | . . . . Machines Disabled . | . . . . Actions | -11 -10 -10 -10 --------- Run | Yrd Mat Min Sub Total 1519 | 107 767 583 62 Wait 376 | . 180 179 17 Move 971 | 81 514 335 41 Hop . | . . . . Pick Up 34 | 11 16 7 . Fast Attach 3 | 2 1 . . Attach 13 | 5 1 7 . Detach . | . . . . Swap 8 | 1 4 3 . Drop 14 | . 12 2 . Fire 99 | 7 39 49 4 Melee . | . . . . Ram . | . . . . Kick . | . . . . Crush 1 | . . 1 . Escape Stasis . | . . . . Rewire . | . . . . Trap . | . . . . Miscellaneous . | . . . . Route ------- -11/Scrapyard -10/Materials (discovered 5 exits: *Mat x3 / *Min / [*Sub]) -10/Mines (discovered 3 exits: *Mat x2 / [*Sub]) -10/Subcaves (discovered 3 exits: Mat x2 / Rec) History --------- Turn | Location | Event 5 | -11/Scrapyard | Discovered new exit (range 15) 151 | -11/Scrapyard | Entered Materials 317 | -10/Materials | Build established: Mutant 430 | -10/Materials | Discovered new exit (range 16) 443 | -10/Materials | Identified exit to Mines 748 | -10/Materials | Discovered new exit (range 15) 827 | -10/Materials | Discovered new exit (range 15) 954 | -10/Materials | Discovered new exit (range 14) 1066 | -10/Materials | Loaded intel: 8 terminal locations 1112 | -10/Materials | Learned location of 1 exit from Storage 1184 | -10/Materials | Learned location of 2 exits from Subcaves 1186 | -10/Materials | Learned location of 2 exits from Mines 1199 | -10/Materials | Learned Storage security intel 1223 | -10/Materials | Learned location of 1 exit from Storage 1257 | -10/Materials | Learned location of 2 exits from Subcaves 1285 | -10/Materials | Entered Mines 1286 | -10/Mines | Identified exit to Materials 1427 | -10/Mines | Learned Materials machine intel 1457 | -10/Mines | Assembled infested the area 1462 | -10/Mines | Assisted by a Guerilla fighting off Assembled 1511 | -10/Mines | Core integrity fell below 50% 1541 | -10/Mines | Core integrity fell below 20% 1542 | -10/Mines | Lost 7 parts (1p2n2u2w) 2057 | -10/Mines | Discovered new exit (range 3) 2060 | -10/Mines | Entered Subcaves 2061 | -10/Subcaves | Identified exit to Recycling 2061 | -10/Subcaves | Identified exit to Materials 2134 | -10/Subcaves | Destroyed by Autobeam Turret with Autobeam Last Messages --------------- 02016_ T-07 Excavator destroyed. 02021_ Acquired 9 matter. 02029_ K-01 Serf collects debris. 02045_ Acquired 11 matter. 02047_ K-01 Serf collects debris. 02051_ HV Slug penetrates Earth. 02057_ EXIT=FOUND LOCATION=UNKNOWN AMBIENT_HEAT=-10 GOAL=ESCAPE Loading 3 Subcaves exits... 02087_ FH-SRK(R) suffers critical hit (Destroy). 02087_ Destroyed Sub. Monowheel. 02090_ FH-SRK(R) knocked back. 02090_ FH-SRK(R) destroyed. 02091_ Acquired 3 matter. 02094_ Acquired 36 matter. 02096_ Subatomizers dissect the Sub. Power Source. 02116_ LQ-YBR(R) destroyed. 02119_ Subatomizers dissect the Sub. Power Source. Map ----- +----------------------------------------------------+ | ??????????????????????????????????? ##?????????? | | ???????????????????????????????????# ##????????? | | ?????????????????????????????????### #????????? | | ?????????????????????????????##### # #????????? | | ?????????????????????????????# ! #????????? | | ?????????????????????????????# &%% #?????????? | | ?????????????????????????????##!## #?????????? | | ??????????????????????????#### ## #?????????? | | ??????????????????????????# # ""## #?????????? | | ??????????????????????????## """## #?????????? | | ????????????????????????### # #" ##????????? | | ????????????????????????# ## "" #????????? | | ????????????????????????## " " ! #????????? | | ????????????????????????# " ## ##$" *%%##????????? | | ????????????????????????## ###### ###&##?????????? | | ?????????????????????????# #??# #?# #?????????? | | ?????????????????????????# #?#"" ?# ##?????????? | | ?????????????????????????# #?# ""?? ??????????? | | ????????????????????????## ##?## "?? ??????????? | | ????????????????????????# #???##?? " #?????????? | | ????????????????????????## ##??????" "##?????????? | | ????????????????????????# " #?????" #??????????? | | ????????????????????????# " #?????#####??????????? | | ????????????????????????## #????????????????????? | | ???????????????????????### ## #??????????????? | | ???????????????????????# @ #???????????? | | ??????????????????????# ss ????????? | | ??????????????????????# ???>????? | | ??????????????????????# #### s ????????? | | ?????????????????????? ????### %##s%?????????? | | ????????????????????? ???????? #????????????? | | ???????????????????? ????????? #????????????? | | ??????????????????? ??????????? ##????????????? | | ?????????????????? ???????????? #?????????????? | | ????????????????? ## ????????????? #?????????????? | | ????????????????##?##?????????????? ?????????????? | | ?????????????????????????????????????????????????? | | ?????????????????????????????????????????????????? | | ?????????????????????????????????????????????????? | | ?????????????????????????????????????????????????? | | ?????????????????????????????????????????????????? | | ?????????????????????????????????????????????????? | | ?????????????????????????????????????????????????? | | ?????????????????????????????????????????????????? | | ?????????????????????????????????????????????????? | | ?????????????????????????????????????????????????? | | ?????????????????????????????????????????????????? | | ?????????????????????????????????????????????????? | | ?????????????????????????????????????????????????? | | ?????????????????????????????????????????????????? | +----------------------------------------------------+ Best States ------------- Heat Dissipation 25 Energy Generation 14 Energy Capacity 250 Matter Stores 300 Matter Capacity 300 Sight Range 16 Terrain Scan Density 10 Armor Coverage 225 Evasion (%) 50 Recoil Reduction 2 Authchip Count 1 Item Schematics ----------------- None Robot Schematics ------------------ None Fabricated ------------ Nothing Repaired ---------- Nothing Studied --------- None Alien Tech Used ----------------- None Achievements -------------- None Challenges ------------ None Game ------ Seed HardcellVisualTorch Manual? 0 Play Time 00:10:38 Cumulative 580.0 hours Start 2025.12.01 @ 00:17:35 End 2025.12.01 @ 00:29:30 Sessions 1 Manual Loads 0 Difficulty Rogue Special Mode None Game No. 747 Rogue 747 Adventurer 0 Explorer 0 Win Type - Total 21 Types 10/1/2/2/2/0/2/2/0/0 Lore% 94 Gallery% 90 Achievement% 75 Wizard Run 0 Options --------- Layout 0 ASCII 0 Keyboard 0 Movement Mouse Keybinds 0 Fullscreen 1 Font 24/Terminus Map View 76x50 Zoom Use 0% Tactical HUD 1 Map Filters NONE Filters NONE Steam 1 RUN: 25c61c98-9206-46df-9553-e75067033929